fUST/lending_fUST_20260401
["ID","MTS","AMOUNT","RATE_DAILY","PERIOD"]
[419169901,1774998646516,-771.14628782,0.00022,2]
[419169902,1774998646526,-493.6422938,0.00022,2]
[419169903,1774998646537,-361.0,0.00022,2]
[419169904,1774998646549,-42685.14899584,0.00022,2]
[419169906,1774998646562,-3795.1,0.00022,2]
[419169907,1774998646573,-1283.82286199,0.00022,2]
[419169908,1774998646584,-1316.27915126,0.00022,2]
[419169909,1774998646596,-51089.15651307,0.00022,2]
[419169910,1774998646609,-152335.39745242,0.00022,2]
[419169911,1774998646621,-274.6353357,0.00022,2]
[419169912,1774998646632,-701.62763894,0.00022,2]
[419169913,1774998646643,-318.84759742,0.00022,2]
[419169914,1774998646658,-6279.21407964,0.00022,2]
[419169915,1774998830475,5000.0,0.00032876,120]
[419169916,1774998860512,300.0,0.0003287,120]
[419169917,1774999001117,6986.70856062,0.00032877,120]
[419169918,1774999076492,2799.49234918,0.00022,120]
[419169925,1774999480666,305.5,0.00032877,120]
[419169926,1774999610259,1047.44,0.000326,120]
[419169927,1774999611269,1047.44,0.00032743,120]
[419169931,1774999724759,500.0,0.0003287,120]
[419169983,1774999832458,-568.88203279,0.00013059,2]
[419169985,1774999832468,-751.97058851,0.00013598,2]
[419169986,1774999832479,-448.02941149,0.00013598,2]
[419169988,1774999832489,-300.0,0.00013698,2]
[419169989,1774999832498,-177.30690347,0.00013698,2]
[419169991,1774999832511,-122.69309653,0.00013698,2]
[419169992,1774999832521,-300.0,0.00013698,2]
[419169994,1774999832530,-1000.0,0.00013699,2]
[419169995,1774999832539,-1158.67129596,0.00014902,2]
[419170142,1774999840157,-41.32870404,0.00014902,2]
[419170143,1774999840167,-1680.0,0.00014903,2]
[419170144,1774999840177,-420.0,0.00015012,2]
[419170145,1774999840187,-420.0,0.00015012,2]
[419170146,1774999840197,-420.0,0.00015012,2]
[419170147,1774999840206,-48932.61514382,0.00015012,2]
[419170148,1774999840216,-300.0,0.00015025,2]
[419170149,1774999840226,-300.0,0.00015025,2]
[419170150,1774999840236,-571.505655,0.00015678,2]
[419170151,1774999840245,-2351.0,0.00016334,2]
[419170152,1774999840254,-1680.0,0.00016392,2]
[419170153,1774999840264,-420.0,0.00016444,2]
[419170154,1774999840273,-587.0,0.00016451,2]
[419170155,1774999840283,-587.0,0.00016451,2]
[419170156,1774999840292,-587.0,0.00016451,2]
[419170157,1774999840302,-300.0,0.00016527,2]
[419170159,1774999840312,-1194.0,0.00017902,2]
[419170160,1774999840322,-587.0,0.00017996,2]
[419170161,1774999840332,-726.0,0.00018028,2]
[419170162,1774999840342,-823.0,0.00018028,2]
[419170163,1774999840351,-723.0,0.00018028,2]
[419170164,1774999840361,-2351.0,0.00018031,2]
[419170165,1774999840371,-179.10942225,0.00018134,2]
[419170166,1774999840380,-262.1903393,0.00018134,2]
[419170167,1774999840389,-720.0,0.00019695,2]
[419170168,1774999840399,-2880.0,0.00019835,2]
[419170169,1774999840408,-151.72300757,0.0002,2]
[419170170,1774999840417,-791.52,0.0002199,3]
[419170171,1774999840426,-25898.4728506,0.00022,2]
[419170172,1774999840438,-414.06079803,0.00022,2]
[419170176,1774999840473,-23643.56225539,0.00022,2]
[419170178,1774999840482,-151.0,0.00022,3]
[419170180,1774999840492,-151.0,0.00022,3]
[419170182,1774999840501,-151.0,0.00022,3]
[419170184,1774999840510,-151.0,0.00022,3]
[419170186,1774999840520,-151.0,0.00022,3]
[419170188,1774999840529,-151.0,0.00022,3]
[419170190,1774999840539,-151.0,0.00022,3]
[419170192,1774999840549,-292.0,0.00022,3]
[419170194,1774999840558,-151.0,0.00022,3]
[419170196,1774999840567,-2141.2861024,0.00022047,2]
[419170198,1774999840576,-3166.1,0.00022269,3]
[419170200,1774999840585,-1583.05,0.00022269,3]
[419170202,1774999840594,-791.52,0.00022269,3]
[419170204,1774999840603,-3071.9246576,0.00022279,2]
[419170206,1774999840613,-196.2308134,0.00022836,2]
[419170208,1774999840622,-200.0,0.00023187,2]
[419170210,1774999840632,-531.31,0.00023187,2]
[419170212,1774999840641,-6332.2,0.00023226,3]
[419170214,1774999840650,-1583.04,0.0002336,3]
[419170216,1774999840660,-2398.4119403,0.00023494,2]
[419170218,1774999840670,-571.505655,0.00023517,2]
[419170220,1774999840679,-500.0,0.00023614,2]
[419170222,1774999840689,-169.67003681,0.00023614,2]
[419170224,1774999840699,-500.0,0.00023614,2]
[419170226,1774999840708,-500.0,0.00023614,2]
[419170228,1774999840717,-500.0,0.00023614,2]
[419170230,1774999840727,-500.0,0.00023614,2]
[419170231,1774999840737,-500.0,0.00023614,2]
[419170233,1774999840746,-500.0,0.00023614,2]
[419170235,1774999840755,-500.0,0.00023614,2]
[419170237,1774999840764,-500.0,0.00023614,2]
[419170239,1774999840774,-500.0,0.00023614,2]
[419170241,1774999840784,-500.0,0.00023614,2]
[419170243,1774999840793,-500.0,0.00023614,2]
[419170245,1774999840802,-301.60232936,0.00023614,2]
[419170247,1774999840812,-500.0,0.00023614,2]
[419170249,1774999840821,-500.0,0.00023614,2]
[419170251,1774999840831,-500.0,0.00023614,2]
[419170253,1774999840840,-500.0,0.00023614,2]
[419170255,1774999840850,-500.0,0.00023614,2]
[419170257,1774999840859,-500.0,0.00023614,2]
[419170259,1774999840869,-500.0,0.00023614,2]
[419170261,1774999840879,-500.0,0.00023614,2]
[419170263,1774999840889,-400.0,0.00023614,2]
[419170265,1774999840899,-5987.01980997,0.00023615,3]
[419170268,1774999840914,-4144.39019003,0.00023615,3]
[419170270,1774999840924,-270.83333333,0.00023615,3]
[419170272,1774999840933,-167.498088,0.00023625,2]
[419170274,1774999840942,-167.498088,0.00023625,2]
[419170276,1774999840952,-167.498088,0.00023625,2]
[419170278,1774999840962,-167.498088,0.00023625,2]
[419170280,1774999840971,-151.0,0.00023625,2]
[419170282,1774999840981,-2615.65007247,0.00023639,3]
[419170284,1774999840993,-3716.54992753,0.00023639,3]
[419170286,1774999841003,-3166.1,0.00023639,3]
[419170288,1774999841012,-1583.04,0.00023639,3]
[419170290,1774999841022,-200.0,0.00023639,2]
[419170292,1774999841031,-198.38878285,0.00023673,2]
[419170294,1774999841042,-324.13659617,0.0002379,2]
[419170311,1774999841198,-603.519,0.0002379,2]
[419170313,1774999841214,-459.34440383,0.0002379,2]
[419170315,1774999841224,-1000.0,0.000238,2]
[419170318,1774999841234,-1000.0,0.000238,3]
[419170319,1774999841244,-1000.0,0.000238,4]
[419170322,1774999841254,-1000.0,0.00024,2]
[419170324,1774999841263,-1140.05,0.00024,2]
[419170326,1774999841272,-180.76590953,0.00024042,2]
[419170327,1774999841282,-270.83333333,0.00024067,2]
[419170329,1774999841291,-342.26209151,0.00024079,2]
[419170331,1774999841300,-752.0442618,0.000242,2]
[419170334,1774999841312,-530.49760276,0.000242,2]
[419170565,1774999843676,-17498.7897767,0.000242,2]
[419170567,1774999843686,-1000.0,0.0002446,2]
[419170569,1774999843696,-1000.0,0.0002446,2]
[419170571,1774999843706,-1000.0,0.0002446,2]
[419170573,1774999843716,-1386.0,0.00024465,7]
[419170575,1774999843725,-1371.0,0.00024556,2]
[419170577,1774999843735,-737.0,0.00024556,2]
[419170579,1774999843745,-184.0,0.00024556,2]
[419170581,1774999843755,-440.0,0.00024556,2]
[419170583,1774999843764,-195.8887297,0.00024578,2]
[419170585,1774999843774,-12659.33401479,0.00024596,3]
[419170588,1774999843786,-5.06598521,0.00024596,3]
[419170590,1774999843795,-250.0,0.00024658,5]
[419170592,1774999843805,-250.0,0.00024658,5]
[419170594,1774999843815,-151.0,0.00024658,2]
[419170596,1774999843825,-151.0,0.00024658,2]
[419170598,1774999843835,-151.0,0.00024658,2]
[419170600,1774999843845,-151.0,0.00024658,2]
[419170602,1774999843854,-629.93026423,0.00024684,2]
[419170895,1774999846349,-757.06973577,0.00024684,2]
[419170897,1774999846359,-151.0,0.000247,8]
[419170899,1774999846369,-423.84476598,0.00024873,2]
[419170901,1774999846378,-500.0,0.00024873,2]
[419170903,1774999846387,-500.0,0.00024873,2]
[419170905,1774999846396,-500.0,0.00024873,2]
[419170907,1774999846405,-500.0,0.00024873,2]
[419170909,1774999846414,-500.0,0.00024873,2]
[419170911,1774999846424,-500.0,0.00024873,2]
[419170913,1774999846433,-500.0,0.00024873,2]
[419170915,1774999846443,-500.0,0.00024873,2]
[419170917,1774999846453,-500.0,0.00024873,2]
[419170919,1774999846461,-500.0,0.00024873,2]
[419170921,1774999846471,-500.0,0.00024873,2]
[419170923,1774999846480,-500.0,0.00024873,2]
[419170925,1774999846489,-37.52549825,0.00024873,2]
[419170928,1774999846500,-462.47450175,0.00024873,2]
[419170930,1774999846509,-4439.59166744,0.00024878,10]
[419170936,1774999846563,-124.02833256,0.00024878,10]
[419170938,1774999846573,-94446.94607949,0.00024888,2]
[419171708,1774999946027,5000.0,0.00032876,120]
[419171709,1774999970197,300.0,0.0003287,120]
[419171729,1775000504150,1027.3,0.000326,120]
[419171730,1775000505122,1027.3,0.00032691,120]
[419171731,1775000506163,1027.3,0.00032782,120]
[419171732,1775000507124,1027.3,0.00032873,120]
[419171739,1775000832509,164.858205,0.00021084,120]
[419171803,1775001032415,-2723.02111255,0.00013292,2]
[419171804,1775001032427,-670.94,0.00013292,2]
[419171805,1775001032479,-1486.0635316,0.00013292,2]
[419171806,1775001032490,-119.97535585,0.00013292,2]
[419171807,1775001032500,-1200.0,0.00013425,2]
[419171808,1775001032509,-5000.0,0.00013426,2]
[419171809,1775001032520,-300.0,0.00013561,2]
[419171810,1775001032530,-300.0,0.00013561,2]
[419171811,1775001032540,-300.0,0.00013561,2]
[419171812,1775001032549,-300.0,0.00013561,2]
[419171813,1775001032559,-5000.0,0.00013562,2]
[419171814,1775001032568,-142.66933115,0.00013699,2]
[419171833,1775001038429,-5000.0,0.00013562,2]
[419171834,1775001038439,-857.33066885,0.00013699,2]
[419171835,1775001038448,-500.0,0.000142,2]
[419171836,1775001038459,-500.0,0.000142,2]
[419171837,1775001038468,-500.5877005,0.000142,2]
[419171838,1775001038478,-300.0,0.00014272,90]
[419171839,1775001038489,-300.0,0.00014272,83]
[419171840,1775001038499,-206.36,0.00014272,63]
[419171841,1775001038509,-500.0,0.00014748,2]
[419171842,1775001038519,-1200.0,0.00014768,2]
[419171843,1775001038528,-369.0,0.00014863,2]
[419171844,1775001038538,-300.0,0.00014863,2]
[419171845,1775001038547,-177.287835,0.00019195,2]
[419171846,1775001038557,-300.32,0.0002,2]
[419171847,1775001038566,-214.07496632,0.0002,2]
[419171848,1775001038576,-164.858205,0.00021084,2]
[419171849,1775001038586,-164.858205,0.00021084,61]
[419171850,1775001038598,-1000.0,0.00022,7]
[419171851,1775001038607,-1000.0,0.00022,7]
[419171852,1775001038616,-1000.0,0.00022,7]
[419171853,1775001038626,-500.0,0.00022,2]
[419171854,1775001038636,-177.287835,0.0002262,2]
[419171855,1775001038646,-1000.0,0.00022699,30]
[419171856,1775001038655,-270.83333333,0.00023,2]
[419171857,1775001038664,-249.40842766,0.00023621,2]
[419171858,1775001038673,-22185.0,0.00024,10]
[419171859,1775001038683,-1187.3042087,0.00024456,2]
[419171860,1775001038692,-440.0,0.00024457,2]
[419171861,1775001038701,-184.0,0.00024457,2]
[419171862,1775001038710,-4111.584999,0.000245,2]
[419171863,1775001038721,-3803.02,0.00024501,10]
[419171864,1775001038731,-3169.18,0.00024501,10]
[419171865,1775001038740,-2640.98,0.00024501,10]
[419171866,1775001038749,-218.81762816,0.0002451,2]
[419171867,1775001038759,-500.0,0.0002451,2]
[419171868,1775001038768,-500.0,0.0002451,2]
[419171869,1775001038777,-500.0,0.0002451,2]
[419171870,1775001038786,-335.05411608,0.0002451,2]
[419171871,1775001038794,-500.0,0.0002451,2]
[419171872,1775001038803,-500.0,0.0002451,2]
[419171873,1775001038812,-500.0,0.0002451,2]
[419171874,1775001038822,-500.0,0.0002451,2]
[419171875,1775001038831,-500.0,0.0002451,2]
[419171876,1775001038931,-500.0,0.0002451,2]
[419171877,1775001038940,-500.0,0.0002451,2]
[419171878,1775001038951,-500.0,0.0002451,2]
[419171879,1775001038961,-500.0,0.0002451,2]
[419171880,1775001038970,-500.0,0.0002451,2]
[419171881,1775001038979,-500.0,0.0002451,2]
[419171882,1775001038987,-500.0,0.0002451,2]
[419171883,1775001038996,-500.0,0.0002451,2]
[419171884,1775001039006,-500.0,0.0002451,2]
[419171885,1775001039015,-500.0,0.0002451,2]
[419171886,1775001039025,-500.0,0.0002451,2]
[419171887,1775001039035,-500.0,0.0002451,2]
[419171888,1775001039045,-500.0,0.0002451,2]
[419171889,1775001039055,-500.0,0.0002451,2]
[419171890,1775001039066,-500.0,0.0002451,2]
[419171891,1775001039076,-500.0,0.0002451,2]
[419171892,1775001039086,-500.0,0.0002451,2]
[419171893,1775001039098,-500.0,0.0002451,2]
[419171894,1775001039109,-500.0,0.0002451,2]
[419171895,1775001039119,-377.75692358,0.0002451,2]
[419171896,1775001039128,-500.0,0.0002451,2]
[419171897,1775001039138,-500.0,0.0002451,2]
[419171898,1775001039146,-500.0,0.0002451,2]
[419171899,1775001039156,-500.0,0.0002451,2]
[419171900,1775001039165,-500.0,0.0002451,2]
[419171901,1775001039174,-500.0,0.0002451,2]
[419171902,1775001039183,-500.0,0.0002451,2]
[419171903,1775001039194,-500.0,0.0002451,2]
[419171904,1775001039203,-500.0,0.0002451,2]
[419171905,1775001039213,-500.0,0.0002451,2]
[419171906,1775001039223,-500.0,0.0002451,2]
[419171907,1775001039234,-210.09494782,0.0002451,2]
[419171908,1775001039249,-289.90505218,0.0002451,2]
[419171909,1775001039259,-500.0,0.0002451,2]
[419171910,1775001039268,-500.0,0.0002451,2]
[419171911,1775001039279,-22.09494782,0.0002451,2]
[419171912,1775001039291,-477.90505218,0.0002451,2]
[419171913,1775001039300,-500.0,0.0002451,2]
[419171914,1775001039310,-500.0,0.0002451,2]
[419171915,1775001039320,-500.0,0.0002451,2]
[419171916,1775001039329,-500.0,0.0002451,2]
[419171917,1775001039339,-500.0,0.0002451,2]
[419171918,1775001039348,-575.27210535,0.0002451,2]
[419171919,1775001039358,-500.0,0.0002451,2]
[419171920,1775001039367,-500.0,0.0002451,2]
[419171921,1775001039377,-500.0,0.0002451,2]
[419171922,1775001039386,-500.0,0.0002451,2]
[419171923,1775001039395,-500.0,0.0002451,2]
[419171924,1775001039404,-500.0,0.0002451,2]
[419171925,1775001039414,-500.0,0.0002451,2]
[419171926,1775001039423,-500.0,0.0002451,2]
[419171927,1775001039432,-500.0,0.0002451,2]
[419171928,1775001039442,-500.0,0.0002451,2]
[419171929,1775001039454,-500.0,0.0002451,2]
[419171930,1775001039463,-500.0,0.0002451,2]
[419171931,1775001039473,-358.48150554,0.0002451,2]
[419171932,1775001039482,-500.0,0.0002451,2]
[419171933,1775001039491,-500.0,0.0002451,2]
[419171934,1775001039500,-500.0,0.0002451,2]
[419171935,1775001039509,-500.0,0.0002451,2]
[419171936,1775001039518,-500.0,0.0002451,2]
[419171937,1775001039528,-500.0,0.0002451,2]
[419171938,1775001039537,-500.0,0.0002451,2]
[419171939,1775001039546,-500.0,0.0002451,2]
[419171940,1775001039555,-500.0,0.0002451,2]
[419171941,1775001039565,-500.0,0.0002451,2]
[419171942,1775001039575,-500.0,0.0002451,2]
[419171943,1775001039584,-500.0,0.0002451,2]
[419171944,1775001039593,-99307.26173807,0.00024511,2]
[419171945,1775001039602,-1187.30420866,0.00024539,2]
[419171946,1775001039611,-390.76551933,0.00024556,2]
[419171947,1775001039620,-191.4923263,0.00024567,2]
[419171948,1775001039629,-455.1794191,0.00024567,2]
[419171949,1775001039639,-455.1794191,0.00024567,2]
[419171950,1775001039648,-455.1794191,0.00024567,2]
[419171951,1775001039657,-500.0,0.00024573,2]
[419171952,1775001039667,-500.29013181,0.00024573,2]
[419171953,1775001039676,-500.0,0.00024573,2]
[419171954,1775001039686,-500.0,0.00024573,2]
[419171955,1775001039696,-500.0,0.00024573,2]
[419171956,1775001039706,-500.0,0.00024573,2]
[419171957,1775001039715,-500.91790075,0.00024573,2]
[419171958,1775001039724,-500.0,0.00024604,3]
[419171959,1775001039734,-500.0,0.00024604,3]
[419171960,1775001039743,-295.72786425,0.00024604,3]
[419171961,1775001039753,-151.0,0.00024611,2]
[419171962,1775001039762,-573.2314068,0.00024611,2]
[419171963,1775001039771,-151.4740473,0.00024611,2]
[419171964,1775001039780,-500.0,0.00024621,2]
[419171965,1775001039789,-500.0,0.00024621,2]
[419171966,1775001039799,-500.0,0.00024621,2]
[419171967,1775001039809,-500.0,0.00024621,2]
[419171968,1775001039823,-500.0,0.00024621,2]
[419171969,1775001039838,-500.0,0.00024621,2]
[419171970,1775001039851,-500.0,0.00024621,2]
[419171971,1775001039862,-500.0,0.00024621,2]
[419171972,1775001039874,-500.0,0.00024621,2]
[419171973,1775001039888,-500.0,0.00024621,2]
[419171974,1775001039901,-500.0,0.00024621,2]
[419171975,1775001039915,-500.0,0.00024621,2]
[419171976,1775001039927,-500.0,0.00024621,2]
[419171977,1775001039940,-500.0,0.00024621,2]
[419171978,1775001039954,-388.80725816,0.00024621,2]
[419171979,1775001039967,-1187.30420866,0.00024622,2]
[419171980,1775001039980,-3703.65654257,0.00024686,2]
[419171981,1775001039992,-1187.30420866,0.00024705,2]
[419171982,1775001040005,-4046.47,0.00024768,3]
[419171983,1775001040017,-2023.23,0.00024768,3]
[419171984,1775001040028,-1011.62,0.00024768,3]
[419171985,1775001040039,-505.81,0.00024768,3]
[419171986,1775001040051,-252.9,0.00024768,3]
[419171987,1775001040064,-758.73,0.00024768,3]
[419171988,1775001040077,-500.64316157,0.00024773,2]
[419171989,1775001040091,-500.0,0.00024773,2]
[419171991,1775001040103,-500.0,0.00024773,2]
[419171992,1775001040115,-500.0,0.00024773,2]
[419171993,1775001040128,-301.61121715,0.00024773,2]
[419171994,1775001040141,-346.80749876,0.00024773,2]
[419171995,1775001040154,-504.79620014,0.00024773,2]
[419171997,1775001040164,-500.0,0.00024773,2]
[419171998,1775001040175,-500.0,0.00024773,2]
[419171999,1775001040186,-200.0,0.00024778,2]
[419172000,1775001040200,-1187.30420866,0.00024788,2]
[419172001,1775001040212,-500.0,0.00024873,2]
[419172002,1775001040222,-500.0,0.00024873,2]
[419172003,1775001040235,-500.0,0.00024873,2]
[419172004,1775001040247,-500.0,0.00024873,2]
[419172005,1775001040262,-500.0,0.00024873,2]
[419172006,1775001040273,-500.0,0.00024873,2]
[419172007,1775001040286,-500.0,0.00024873,2]
[419172008,1775001040297,-500.0,0.00024873,2]
[419172009,1775001040308,-500.0,0.00024873,2]
[419172010,1775001040319,-500.0,0.00024873,2]
[419172011,1775001040330,-250.0,0.00024877,6]
[419172012,1775001040340,-844.28,0.00024878,3]
[419172013,1775001040352,-181271.7676032,0.00024888,2]
[419172014,1775001040364,-151.0,0.00024888,2]
[419172016,1775001040375,-333.95949,0.00024888,2]
[419172018,1775001040386,-333.95949,0.00024888,2]
[419172019,1775001040397,-151.0,0.00024888,2]
[419172020,1775001040409,-333.95949,0.00024888,2]
[419172021,1775001040420,-333.95949,0.00024888,2]
[419172023,1775001040431,-151.0,0.00024888,2]
[419172025,1775001040443,-151.0,0.00024888,2]
[419172026,1775001040454,-151.0,0.00024888,2]
[419172027,1775001040465,-151.0,0.00024888,2]
[419172029,1775001040476,-3863.108164,0.00024888,2]
[419172031,1775001040487,-3863.108164,0.00024888,2]
[419172032,1775001040499,-3863.108164,0.00024888,2]
[419172033,1775001040510,-3863.108164,0.00024888,2]
[419172034,1775001040521,-262.422439,0.00024888,2]
[419172035,1775001040532,-262.422439,0.00024888,2]
[419172036,1775001040543,-262.422439,0.00024888,2]
[419172037,1775001040554,-262.422439,0.00024888,2]
[419172038,1775001040565,-159.66596,0.00024888,2]
[419172039,1775001040576,-159.66596,0.00024888,2]
[419172040,1775001040587,-159.66596,0.00024888,2]
[419172041,1775001040598,-159.66596,0.00024888,2]
[419172042,1775001040609,-151.0,0.00024888,2]
[419172043,1775001040620,-151.0,0.00024888,2]
[419172044,1775001040631,-151.0,0.00024888,2]
[419172045,1775001040643,-151.0,0.00024888,2]
[419172046,1775001040654,-871.346976,0.00024888,2]
[419172047,1775001040664,-151.0,0.00024888,2]
[419172048,1775001040677,-871.346976,0.00024888,2]
[419172049,1775001040689,-871.346976,0.00024888,2]
[419172050,1775001040703,-871.346976,0.00024888,2]
[419172051,1775001040715,-151.0,0.00024888,2]
[419172052,1775001040727,-151.0,0.00024888,2]
[419172054,1775001040738,-985.854136,0.00024888,2]
[419172056,1775001040749,-985.854136,0.00024888,2]
[419172058,1775001040760,-985.854136,0.00024888,2]
[419172060,1775001040771,-985.854136,0.00024888,2]
[419172062,1775001040782,-954.07156248,0.00024925,2]
[419172064,1775001040793,-166.0,0.00024944,3]
[419172066,1775001040804,-339.0,0.00024944,3]
[419172069,1775001040815,-339.0,0.00024944,3]
[419172071,1775001040825,-339.0,0.00024944,3]
[419172072,1775001040834,-339.0,0.00024944,3]
[419172086,1775001040952,-339.0,0.00024944,3]
[419172088,1775001040967,-339.0,0.00024944,3]
[419172090,1775001040977,-339.0,0.00024944,3]
[419172092,1775001040986,-339.0,0.00024944,3]
[419172094,1775001040996,-339.0,0.00024944,3]
[419172096,1775001041005,-339.0,0.00024944,3]
[419172098,1775001041013,-339.0,0.00024944,3]
[419172100,1775001041023,-339.0,0.00024944,3]
[419172102,1775001041032,-339.0,0.00024944,3]
[419172104,1775001041042,-339.0,0.00024944,3]
[419172106,1775001041051,-339.0,0.00024944,3]
[419172108,1775001041060,-339.0,0.00024944,3]
[419172110,1775001041069,-339.0,0.00024944,3]
[419172112,1775001041078,-339.0,0.00024944,3]
[419172114,1775001041088,-339.0,0.00024944,3]
[419172116,1775001041098,-339.0,0.00024944,3]
[419172118,1775001041107,-339.0,0.00024944,3]
[419172120,1775001041117,-339.0,0.00024944,3]
[419172121,1775001041127,-339.0,0.00024944,3]
[419172123,1775001041136,-339.0,0.00024944,3]
[419172125,1775001041146,-339.0,0.00024944,3]
[419172127,1775001041155,-339.0,0.00024944,3]
[419172129,1775001041165,-339.0,0.00024944,3]
[419172131,1775001041174,-339.0,0.00024944,3]
[419172133,1775001041183,-339.0,0.00024944,3]
[419172135,1775001041193,-339.0,0.00024944,3]
[419172137,1775001041202,-339.0,0.00024944,3]
[419172139,1775001041211,-339.0,0.00024944,3]
[419172141,1775001041220,-339.0,0.00024944,3]
[419172143,1775001041229,-339.0,0.00024944,3]
[419172145,1775001041238,-339.0,0.00024944,3]
[419172147,1775001041247,-339.0,0.00024944,3]
[419172149,1775001041256,-339.0,0.00024944,3]
[419172151,1775001041266,-339.0,0.00024944,3]
[419172153,1775001041275,-339.0,0.00024944,3]
[419172155,1775001041284,-339.0,0.00024944,3]
[419172157,1775001041294,-339.0,0.00024944,3]
[419172159,1775001041303,-339.0,0.00024944,3]
[419172161,1775001041312,-339.0,0.00024944,3]
[419172163,1775001041322,-339.0,0.00024944,3]
[419172165,1775001041331,-339.0,0.00024944,3]
[419172167,1775001041341,-691.0,0.00024944,3]
[419172169,1775001041350,-202.17212089,0.00024944,3]
[419172171,1775001041360,-691.0,0.00024944,3]
[419172173,1775001041370,-200.0,0.00024944,3]
[419172175,1775001041379,-166.0,0.00024944,3]
[419172177,1775001041390,-691.0,0.00024944,3]
[419172179,1775001041399,-204.83946471,0.00024944,3]
[419172181,1775001041409,-155.0,0.00024944,3]
[419172182,1775001041420,-339.0,0.00024944,3]
[419172184,1775001041430,-691.0,0.00024944,3]
[419172186,1775001041439,-155.0,0.00024944,3]
[419172188,1775001041448,-646.0,0.00024944,3]
[419172190,1775001041458,-339.0,0.00024944,3]
[419172192,1775001041467,-691.0,0.00024944,3]
[419172194,1775001041478,-155.0,0.00024944,3]
[419172196,1775001041487,-646.0,0.00024944,3]
[419172198,1775001041497,-339.0,0.00024944,3]
[419172200,1775001041507,-691.0,0.00024944,3]
[419172202,1775001041517,-155.0,0.00024944,3]
[419172204,1775001041526,-646.0,0.00024944,3]
[419172206,1775001041535,-691.0,0.00024944,3]
[419172208,1775001041544,-339.0,0.00024944,3]
[419172210,1775001041553,-155.0,0.00024944,3]
[419172212,1775001041563,-646.0,0.00024944,3]
[419172214,1775001041572,-691.0,0.00024944,3]
[419172216,1775001041581,-339.0,0.00024944,3]
[419172218,1775001041589,-155.0,0.00024944,3]
[419172219,1775001041599,-646.0,0.00024944,3]
[419172221,1775001041608,-339.0,0.00024944,3]
[419172224,1775001041618,-691.0,0.00024944,3]
[419172225,1775001041627,-155.0,0.00024944,3]
[419172227,1775001041636,-646.0,0.00024944,3]
[419172229,1775001041645,-339.0,0.00024944,3]
[419172231,1775001041655,-691.0,0.00024944,3]
[419172233,1775001041665,-155.0,0.00024944,3]
[419172235,1775001041674,-646.0,0.00024944,3]
[419172237,1775001041683,-339.0,0.00024944,3]
[419172239,1775001041693,-691.0,0.00024944,3]
[419172241,1775001041702,-646.0,0.00024944,3]
[419172243,1775001041712,-153.54905084,0.00024944,3]
[419172245,1775001041721,-691.0,0.00024944,3]
[419172247,1775001041731,-339.0,0.00024944,3]
[419172249,1775001041740,-646.0,0.00024944,3]
[419172251,1775001041750,-691.0,0.00024944,3]
[419172253,1775001041759,-339.0,0.00024944,3]
[419172255,1775001041768,-646.0,0.00024944,3]
[419172257,1775001041777,-166.0,0.00024944,3]